fUSD/lending_fUSD_20250115
["ID","MTS","AMOUNT","RATE_DAILY","PERIOD"]
[349110325,1736974254307,-322.87965788,0.00043013,4]
[349110326,1736974254316,-500.0,0.00043013,4]
[349110327,1736974254326,-500.0,0.00043013,4]
[349110328,1736974254335,-500.0,0.00043013,4]
[349110329,1736974254344,-500.0,0.00043013,4]
[349110330,1736974254354,-500.0,0.00043013,4]
[349110331,1736974254363,-500.0,0.00043013,4]
[349110332,1736974254376,-500.0,0.00043013,4]
[349110333,1736974254385,-500.0,0.00043013,4]
[349110334,1736974254395,-500.0,0.00043013,4]
[349110335,1736974254404,-411.8706257,0.00043013,4]
[349110336,1736974254414,-500.0,0.00043013,4]
[349110337,1736974254423,-500.0,0.00043013,4]
[349110338,1736974254432,-500.0,0.00043013,4]
[349110339,1736974254442,-500.0,0.00043013,4]
[349110340,1736974254451,-500.0,0.00043013,4]
[349110341,1736974254461,-500.0,0.00043013,4]
[349110342,1736974254471,-500.0,0.00043013,4]
[349110343,1736974254480,-500.0,0.00043013,4]
[349110344,1736974254489,-500.0,0.00043013,4]
[349110345,1736974254498,-500.0,0.00043013,4]
[349110346,1736974254507,-500.0,0.00043013,4]
[349110347,1736974254517,-500.0,0.00043013,4]
[349110348,1736974254526,-500.0,0.00043013,4]
[349110349,1736974254534,-151.0,0.00043013,14]
[349110350,1736974254544,-236.189514,0.00043013,14]
[349110351,1736974254553,-217.98446718,0.00043013,14]
[349110352,1736974254563,-500.0,0.00043013,4]
[349110353,1736974254572,-500.0,0.00043013,4]
[349110354,1736974254581,-500.0,0.00043013,4]
[349110355,1736974254591,-500.37206989,0.00043013,4]
[349110356,1736974254600,-500.0,0.00043013,4]
[349110357,1736974254609,-500.0,0.00043013,4]
[349110358,1736974254618,-500.0,0.00043013,4]
[349110359,1736974254627,-500.0,0.00043013,4]
[349110360,1736974254635,-500.0,0.00043013,4]
[349110361,1736974254645,-500.0,0.00043013,4]
[349110362,1736974254654,-500.0,0.00043013,4]
[349110363,1736974254663,-500.0,0.00043013,4]
[349110364,1736974254672,-500.0,0.00043013,4]
[349110365,1736974254681,-500.0,0.00043013,4]
[349110366,1736974254691,-500.0,0.00043013,4]
[349110367,1736974254700,-500.0,0.00043013,4]
[349110368,1736974254709,-500.0,0.00043013,4]
[349110369,1736974254718,-500.0,0.00043013,4]
[349110370,1736974254728,-500.0,0.00043013,4]
[349110371,1736974254737,-500.0,0.00043013,4]
[349110372,1736974254746,-500.0,0.00043013,4]
[349110373,1736974254755,-500.0,0.00043013,4]
[349110374,1736974254764,-500.0,0.00043013,4]
[349110375,1736974254774,-500.0,0.00043013,4]
[349110376,1736974254783,-500.0,0.00043013,4]
[349110377,1736974254792,-500.0,0.00043013,4]
[349110378,1736974254801,-500.0,0.00043013,4]
[349110379,1736974254810,-500.0,0.00043013,4]
[349110380,1736974254819,-500.0,0.00043013,4]
[349110381,1736974254828,-500.0,0.00043013,4]
[349110382,1736974254837,-500.0,0.00043013,4]
[349110383,1736974254846,-500.0,0.00043013,4]
[349110384,1736974254855,-151.0,0.00043013,14]
[349110385,1736974254865,-151.0,0.00043013,14]
[349110386,1736974254874,-500.0,0.00043013,4]
[349110387,1736974254883,-500.0,0.00043013,4]
[349110388,1736974254893,-500.0,0.00043013,4]
[349110389,1736974254902,-500.0,0.00043013,4]
[349110390,1736974254911,-500.0,0.00043013,4]
[349110391,1736974254920,-500.0,0.00043013,4]
[349110392,1736974254929,-500.0,0.00043013,4]
[349110393,1736974254938,-500.0,0.00043013,4]
[349110394,1736974254947,-500.0,0.00043013,4]
[349110395,1736974254957,-500.0,0.00043013,4]
[349110396,1736974254966,-500.0,0.00043013,4]
[349110397,1736974254975,-500.0,0.00043013,4]
[349110398,1736974254984,-500.0,0.00043013,4]
[349110399,1736974254993,-500.0,0.00043013,4]
[349110400,1736974255002,-500.0,0.00043013,4]
[349110401,1736974255011,-500.0,0.00043013,4]
[349110402,1736974255020,-500.0,0.00043013,4]
[349110403,1736974255029,-500.0,0.00043013,4]
[349110404,1736974255038,-500.0,0.00043013,4]
[349110405,1736974255047,-301.87968766,0.00043013,4]
[349110406,1736974255056,-500.0,0.00043013,4]
[349110407,1736974255066,-500.0,0.00043013,4]
[349110408,1736974255075,-500.0,0.00043013,4]
[349110409,1736974255084,-500.0,0.00043013,4]
[349110410,1736974255093,-500.0,0.00043013,4]
[349110411,1736974255102,-500.0,0.00043013,4]
[349110412,1736974255112,-500.0,0.00043013,4]
[349110413,1736974255121,-500.0,0.00043013,4]
[349110414,1736974255130,-500.0,0.00043013,4]
[349110415,1736974255139,-500.0,0.00043013,4]
[349110416,1736974255148,-500.0,0.00043013,4]
[349110417,1736974255161,-501.40913893,0.00043013,4]
[349110418,1736974255172,-500.0,0.00043013,4]
[349110419,1736974255182,-500.0,0.00043013,4]
[349110420,1736974255191,-500.0,0.00043013,4]
[349110421,1736974255200,-500.0,0.00043013,4]
[349110422,1736974255209,-501.64030054,0.00043013,4]
[349110423,1736974255218,-500.0,0.00043013,4]
[349110424,1736974255229,-500.0,0.00043013,4]
[349110425,1736974255238,-500.0,0.00043013,4]
[349110426,1736974255248,-500.0,0.00043013,4]
[349110427,1736974255258,-500.0,0.00043013,4]
[349110428,1736974255267,-500.0,0.00043013,4]
[349110429,1736974255277,-500.0,0.00043013,4]
[349110430,1736974255286,-500.0,0.00043013,4]
[349110431,1736974255295,-500.0,0.00043013,4]
[349110432,1736974255304,-500.0,0.00043013,4]
[349110433,1736974255314,-500.0,0.00043013,4]
[349110434,1736974255323,-500.0,0.00043013,4]
[349110435,1736974255332,-500.0,0.00043013,4]
[349110436,1736974255342,-500.0,0.00043013,4]
[349110437,1736974255351,-500.0,0.00043013,4]
[349110438,1736974255362,-500.0,0.00043013,4]
[349110439,1736974255373,-500.0,0.00043013,4]
[349110440,1736974255383,-500.0,0.00043013,4]
[349110441,1736974255393,-500.0,0.00043013,4]
[349110442,1736974255402,-500.0,0.00043013,4]
[349110443,1736974255413,-500.0,0.00043013,4]
[349110444,1736974255423,-500.0,0.00043013,4]
[349110445,1736974255432,-500.0,0.00043013,4]
[349110446,1736974255442,-500.0,0.00043013,4]
[349110447,1736974255453,-500.0,0.00043013,4]
[349110448,1736974255463,-500.0,0.00043013,4]
[349110449,1736974255474,-500.0,0.00043013,4]
[349110450,1736974255483,-500.0,0.00043013,4]
[349110451,1736974255494,-500.0,0.00043013,4]
[349110452,1736974255506,-324.5242203,0.00043013,4]
[349110453,1736974255515,-500.0,0.00043013,4]
[349110454,1736974255525,-500.0,0.00043013,4]
[349110455,1736974255534,-500.0,0.00043013,4]
[349110456,1736974255544,-500.0,0.00043013,4]
[349110457,1736974255553,-500.0,0.00043013,4]
[349110458,1736974255563,-500.0,0.00043013,4]
[349110459,1736974255572,-500.0,0.00043013,4]
[349110460,1736974255582,-500.0,0.00043013,4]
[349110461,1736974255593,-500.0,0.00043013,4]
[349110462,1736974255603,-500.0,0.00043013,4]
[349110463,1736974255612,-500.0,0.00043013,4]
[349110464,1736974255622,-500.0,0.00043013,4]
[349110465,1736974255631,-500.0,0.00043013,4]
[349110466,1736974255640,-500.0,0.00043013,4]
[349110467,1736974255650,-500.0,0.00043013,4]
[349110468,1736974255659,-500.0,0.00043013,4]
[349110469,1736974255669,-500.0,0.00043013,4]
[349110470,1736974255678,-500.0,0.00043013,4]
[349110471,1736974255688,-500.0,0.00043013,4]
[349110472,1736974255698,-500.0,0.00043013,4]
[349110473,1736974255707,-500.0,0.00043013,4]
[349110474,1736974255716,-536.66,0.00043013,4]
[349110475,1736974255727,-500.0,0.00043013,4]
[349110476,1736974255736,-500.0,0.00043013,4]
[349110477,1736974255746,-500.0,0.00043013,4]
[349110478,1736974255755,-500.0,0.00043013,4]
[349110479,1736974255764,-500.0,0.00043013,4]
[349110480,1736974255774,-500.0,0.00043013,4]
[349110481,1736974255783,-500.0,0.00043013,4]
[349110482,1736974255793,-500.0,0.00043013,4]
[349110483,1736974255803,-500.0,0.00043013,4]
[349110484,1736974255812,-500.0,0.00043013,4]
[349110485,1736974255821,-366.75806297,0.00043013,4]
[349110486,1736974255831,-500.0,0.00043013,4]
[349110487,1736974255840,-500.0,0.00043013,4]
[349110488,1736974255850,-500.0,0.00043013,4]
[349110489,1736974255860,-571.96,0.00043013,4]
[349110490,1736974255869,-500.0,0.00043013,4]
[349110491,1736974255879,-500.0,0.00043013,4]
[349110492,1736974255888,-500.0,0.00043013,4]
[349110493,1736974255898,-500.0,0.00043013,4]
[349110494,1736974255907,-181.81,0.00043013,4]
[349110495,1736974255917,-500.0,0.00043013,4]
[349110496,1736974255927,-500.0,0.00043013,4]
[349110497,1736974255937,-500.0,0.00043013,4]
[349110498,1736974255947,-500.0,0.00043013,4]
[349110499,1736974255957,-500.0,0.00043013,4]
[349110500,1736974255967,-500.0,0.00043013,4]
[349110501,1736974255979,-500.0,0.00043013,4]
[349110502,1736974255989,-500.0,0.00043013,4]
[349110503,1736974255999,-500.0,0.00043013,4]
[349110504,1736974256009,-500.0,0.00043013,4]
[349110505,1736974256019,-500.0,0.00043013,4]
[349110506,1736974256028,-500.0,0.00043013,4]
[349110507,1736974256038,-500.0,0.00043013,4]
[349110508,1736974256048,-152.084318,0.00043013,14]
[349110509,1736974256059,-500.0,0.00043013,4]
[349110510,1736974256069,-500.0,0.00043013,4]
[349110511,1736974256079,-500.0,0.00043013,4]
[349110512,1736974256090,-500.0,0.00043013,4]
[349110513,1736974256100,-500.0,0.00043013,4]
[349110514,1736974256110,-500.0,0.00043013,4]
[349110515,1736974256120,-500.0,0.00043013,4]
[349110516,1736974256129,-500.0,0.00043013,4]
[349110517,1736974256139,-500.0,0.00043013,4]
[349110518,1736974256149,-500.0,0.00043013,4]
[349110519,1736974256159,-500.0,0.00043013,4]
[349110520,1736974256168,-500.0,0.00043013,4]
[349110521,1736974256178,-500.0,0.00043013,4]
[349110522,1736974256188,-500.0,0.00043013,4]
[349110523,1736974256197,-529.95,0.00043013,4]
[349110524,1736974256207,-500.0,0.00043013,4]
[349110525,1736974256216,-500.0,0.00043013,4]
[349110526,1736974256231,-500.0,0.00043013,4]
[349110527,1736974256240,-500.0,0.00043013,4]
[349110528,1736974256250,-500.0,0.00043013,4]
[349110529,1736974256259,-500.0,0.00043013,4]
[349110530,1736974256269,-500.0,0.00043013,4]
[349110531,1736974256278,-500.0,0.00043013,4]
[349110532,1736974256288,-283.53474842,0.00043013,4]
[349110533,1736974256297,-500.0,0.00043013,4]
[349110534,1736974256307,-500.0,0.00043013,4]
[349110535,1736974256317,-500.0,0.00043013,4]
[349110536,1736974256326,-535.3,0.00043013,4]
[349110537,1736974256336,-191.30334523,0.00043013,4]
[349110538,1736974494334,-933.3755619,0.0004,120]
[349110539,1736974931399,150.36,0.00010137,2]
[349110540,1736974931657,150.36,0.00019198,2]
[349110545,1736974999317,66.6244381,0.00021314,120]
[349110546,1736974999346,83.3755619,0.00021314,120]
[349110548,1736975052703,150.0,0.0002,2]
[349110549,1736975211034,82037.41829978,0.0002,2]
[349110582,1736975431773,-500.0,0.00021314,2]
[349110584,1736975431783,-500.0,0.00021314,2]
[349110586,1736975431793,-298.35662646,0.00021314,2]
[349110587,1736975431804,-300.0,0.0002138,2]
[349110589,1736975431814,-1000.0,0.00021381,30]
[349110590,1736975431824,-1000.0,0.00021381,120]
[349110591,1736975431833,-1000.0,0.00021381,30]
[349110592,1736975431845,-1000.0,0.00021381,30]
[349110593,1736975431855,-1000.0,0.00021381,60]
[349110594,1736975431864,-294.40639492,0.00021381,2]
[349110595,1736975431874,-150.36,0.00028258,2]
[349110596,1736975431883,-181.53,0.00033157,2]
[349110597,1736975431893,-150.36,0.00037319,2]
[349110598,1736975431903,-10926.0,0.00038022,2]
[349110599,1736975431913,-150.0,0.00039058,7]
[349110600,1736975431923,-151.94480533,0.00039058,7]
[349110601,1736975431934,-150.0,0.00039058,7]
[349110602,1736975431944,-296.15,0.00039592,2]
[349110603,1736975431954,-506.075581,0.000408,30]
[349110604,1736975431963,-500.0,0.0004109,2]
[349110605,1736975431972,-276.46,0.00041322,120]
[349110606,1736975431981,-458.321,0.00041334,60]
[349110607,1736975431991,-250.0,0.00041334,2]
[349110608,1736975432002,-1000.0,0.00041343,2]
[349110609,1736975432012,-161.39,0.0004135,2]
[349110610,1736975432229,-250.0,0.00041447,120]
[349110611,1736975432239,-150.0,0.00041501,4]
[349110612,1736975432249,-23900.0,0.00041502,2]
[349110614,1736975432258,-507.3728702,0.00041657,9]
[349110616,1736975432269,-250.0,0.00041757,2]
[349110618,1736975432279,-162.67,0.00041854,2]
[349110620,1736975432289,-296.15,0.00041856,2]
[349110622,1736975432298,-162.67,0.00041865,2]
[349110624,1736975432307,-162.67,0.00041876,2]
[349110626,1736975432317,-162.67,0.00041887,2]
[349110628,1736975432326,-162.67,0.00041898,2]
[349110630,1736975432336,-162.67,0.00041909,2]
[349110632,1736975432346,-162.67,0.0004192,2]
[349110634,1736975432356,-162.67,0.00041931,2]
[349110636,1736975432366,-162.67,0.00041942,2]
[349110638,1736975432375,-162.67,0.00041953,2]
[349110640,1736975432384,-162.67,0.00041964,2]
[349110642,1736975432393,-162.67,0.00041975,2]
[349110644,1736975432403,-162.67,0.00041986,2]
[349110646,1736975432414,-162.67,0.00041997,2]
[349110648,1736975432423,-162.67,0.00042009,2]
[349110650,1736975432432,-162.67,0.0004202,2]
[349110652,1736975432441,-162.67,0.00042031,2]
[349110654,1736975432451,-162.67,0.00042042,2]
[349110656,1736975432460,-162.67,0.00042053,2]
[349110658,1736975432469,-162.67,0.00042064,2]
[349110660,1736975432478,-2930.091,0.00042447,2]
[349110662,1736975432487,-150.011606,0.00042498,119]
[349110664,1736975432496,-4246.0,0.00042547,117]
[349110666,1736975432505,-150.011606,0.00042548,120]
[349110668,1736975432516,-468.1612463,0.0004258,30]
[349110670,1736975432526,-157.011606,0.00042598,119]
[349110672,1736975432535,-157.011606,0.00042648,120]
[349110674,1736975432544,-17274.89002798,0.00042659,120]
[349110676,1736975432553,-1085.04735498,0.00042662,120]
[349110677,1736975432562,-1416.4548853,0.00042666,120]
[349110680,1736975432573,-8815.62504215,0.00042672,120]
[349110681,1736975432583,-1085.04735498,0.00042679,120]
[349110683,1736975432592,-1085.04735498,0.00042682,120]
[349110685,1736975432601,-200.0,0.00042683,120]
[349110687,1736975432610,-944.5242792,0.00042683,120]
[349110689,1736975432620,-16849.3501248,0.00042687,120]
[349110691,1736975432629,-200.0,0.0004269,120]
[349110693,1736975432638,-35969.21680184,0.00042694,120]
[349110695,1736975432648,-508.0,0.00042695,120]
[349110697,1736975432658,-157.011606,0.00042698,119]
[349110700,1736975432667,-2623.41023386,0.000427,120]
[349110702,1736975432677,-200.0,0.00042701,120]
[349110703,1736975432686,-2414.8469,0.00042713,2]
[349110705,1736975432696,-79295.89394389,0.00042716,120]
[349110707,1736975432705,-944.5242792,0.00042716,120]
[349110709,1736975432715,-1904.99339479,0.00042717,120]
[349110711,1736975432724,-8815.62504215,0.00042724,120]
[349110712,1736975432734,-35969.21680184,0.0004273,120]
[349110713,1736975432743,-16849.3501248,0.0004273,120]
[349110714,1736975432752,-2623.41023386,0.00042731,120]
[349110715,1736975432764,-17274.89002798,0.00042737,120]
[349110716,1736975432773,-2356.49640021,0.00042737,120]
[349110717,1736975432782,-79295.89394389,0.00042739,120]
[349110718,1736975432792,-2356.49640021,0.00042742,120]
[349110721,1736975432803,-1416.4548853,0.00042748,120]
[349110723,1736975432814,-157.011606,0.00042748,120]
[349110725,1736975432824,-2312.40917115,0.00042753,120]
[349110727,1736975432833,-17274.89002798,0.00042755,120]
[349110729,1736975432845,-2356.49640021,0.00042758,120]
[349110731,1736975432856,-1085.04735498,0.0004276,120]
[349110732,1736975432866,-133947.77636633,0.00042767,120]
[349110734,1736975432875,-133947.77636633,0.00042772,120]
[349110736,1736975432885,-284.84987265,0.00042779,120]
[349110739,1736975432895,-53546.01683154,0.00042785,120]
[349110744,1736975432941,-80401.75953479,0.00042785,120]
[349110746,1736975432950,-133947.77636633,0.00042789,120]
[349110748,1736975432960,-8815.62504215,0.00042793,120]
[349110750,1736975432968,-1904.99339479,0.00042797,120]
[349110752,1736975432977,-157.011606,0.00042798,119]
[349110754,1736975432986,-79295.89394389,0.00042811,120]
[349110756,1736975432996,-1000.0,0.00042813,2]
[349110758,1736975433005,-1612.85449127,0.00042813,15]
[349110760,1736975433015,-56470.85944233,0.00042814,120]
[349110762,1736975433024,-17274.89002798,0.00042824,120]
[349110764,1736975433034,-177.57455637,0.00042829,2]
[349110766,1736975433043,-177.57455635,0.00042833,2]
[349110768,1736975433052,-177.57455635,0.00042838,2]
[349110770,1736975433062,-7868.08080706,0.0004284,120]
[349110772,1736975433071,-200.0,0.00042841,120]
[349110774,1736975433082,-56470.85944233,0.00042845,120]
[349110776,1736975433092,-157.011606,0.00042848,120]
[349110778,1736975433102,-200.0,0.00042848,120]
[349110780,1736975433113,-1085.04735498,0.00042852,120]
[349110782,1736975433122,-2312.40917115,0.00042854,120]
[349110784,1736975433132,-1416.4548853,0.00042858,120]
[349110786,1736975433141,-1904.99339479,0.00042861,120]
[349110788,1736975433151,-56470.85944233,0.00042862,120]
[349110790,1736975433161,-16849.3501248,0.00042869,120]
[349110792,1736975433170,-2623.41023386,0.00042878,120]
[349110794,1736975433180,-2312.40917115,0.00042878,120]
[349110796,1736975433189,-1612.85449119,0.00042878,15]
[349110798,1736975433198,-133947.77636633,0.00042879,120]
[349110800,1736975433208,-17274.89002798,0.0004288,120]
[349110802,1736975433218,-1416.4548853,0.00042884,120]
[349110804,1736975433227,-5000.0,0.00042886,2]
[349110806,1736975433237,-2579.1322,0.00042886,2]
[349110808,1736975433247,-1904.99339479,0.00042892,120]
[349110810,1736975433256,-284.84987265,0.00042892,120]
[349110812,1736975433265,-157.011606,0.00042898,119]
[349110814,1736975433275,-16849.3501248,0.00042899,120]
[349110816,1736975433284,-215.7542553,0.000429,4]
[349110818,1736975433294,-944.5242792,0.00042903,120]
[349110820,1736975433303,-944.5242792,0.00042906,120]
[349110822,1736975433312,-944.5242792,0.00042909,120]
[349110824,1736975433321,-2623.41023386,0.00042911,120]
[349110826,1736975433331,-638.8921,0.00042913,2]
[349110828,1736975433341,-1000.0,0.00042913,2]
[349110830,1736975433350,-2500.0,0.00042913,2]
[349110832,1736975433359,-176.627845,0.00042913,9]
[349110834,1736975433369,-325.71650992,0.00042913,120]
[349110836,1736975433378,-153.78101706,0.00042913,15]
[349110838,1736975433388,-35969.21680184,0.00042917,120]
[349110840,1736975433398,-8815.62504215,0.00042927,120]
[349110842,1736975433408,-7868.08080706,0.00042929,120]
[349110844,1736975433419,-8815.62504215,0.0004293,120]
[349110846,1736975433429,-2356.49640021,0.00042933,120]
[349110848,1736975433439,-284.84987265,0.00042937,120]
[349110850,1736975433449,-16849.3501248,0.00042938,120]
[349110852,1736975433459,-2312.40917115,0.00042943,120]
[349110854,1736975433468,-1612.85449119,0.00042943,15]
[349110856,1736975433478,-7868.08080706,0.00042946,120]
[349110858,1736975433488,-157.011606,0.00042948,120]
[349110860,1736975433498,-2312.40917115,0.00042951,120]
[349110862,1736975433508,-2623.41023386,0.00042952,120]
[349110864,1736975433518,-35969.21680184,0.00042954,120]
[349110866,1736975433527,-79295.89394389,0.0004296,120]
[349110868,1736975433537,-35969.21680184,0.00042964,120]
[349110870,1736975433546,-325.71650984,0.00042967,120]
[349110872,1736975433556,-200.0,0.00042982,120]
[349110873,1736975433565,-7868.08080706,0.00042982,120]
[349110874,1736975433575,-2356.49640021,0.00042983,120]
[349110875,1736975433585,-56470.85944233,0.00042984,120]
[349110876,1736975433595,-2769.0,0.00042986,120]
[349110877,1736975433604,-30113.0,0.00042986,120]
[349110878,1736975433614,-801.0,0.00042986,120]
[349110879,1736975433623,-1416.4548853,0.00042988,120]
[349110880,1736975433633,-56470.85944233,0.00042989,120]
[349110881,1736975433643,-284.84987265,0.00042992,120]
[349110882,1736975433653,-7868.08080706,0.00042993,120]
[349110883,1736975433663,-284.84987265,0.00042997,120]
[349110884,1736975433673,-157.011606,0.00042998,119]
[349110885,1736975433682,-79295.89394389,0.00042998,120]
[349110886,1736975433692,-1904.99339479,0.00042999,120]
[349110887,1736975433701,-159.05,0.00043003,2]
[349110888,1736975433711,-1612.85449119,0.00043009,15]
[349110889,1736975433721,-4237.9393082,0.00043011,2]
[349110890,1736975433731,-500.0,0.00043012,31]
[349110891,1736975433741,-503.81658871,0.00043012,31]
[349110892,1736975433750,-183.95555617,0.00043012,31]
[349110893,1736975433764,-500.0,0.00043012,31]
[349110894,1736975433776,-500.0,0.00043012,31]
[349110895,1736975433788,-500.0,0.00043012,31]
[349110896,1736975433802,-191.03238412,0.00043012,31]
[349110897,1736975433814,-500.0,0.00043012,31]
[349110898,1736975433825,-502.75653172,0.00043012,31]
[349110899,1736975433836,-500.0,0.00043012,7]
[349110900,1736975433846,-2500.0,0.00043012,120]
[349110901,1736975433855,-686315.49887548,0.00043013,35]
[349110902,1736975433864,-151.0,0.00043013,14]
[349110903,1736975433873,-164.900238,0.00043013,14]
[349110904,1736975433883,-502.46328669,0.00043013,4]
[349110905,1736975433892,-500.0,0.00043013,4]
[349110906,1736975433902,-500.0,0.00043013,4]
[349110907,1736975433911,-500.0,0.00043013,4]
[349110908,1736975433921,-502.24322802,0.00043013,4]
[349110909,1736975433932,-500.0,0.00043013,4]
[349110910,1736975433942,-490.75182993,0.00043013,4]
[349110911,1736975433952,-500.0,0.00043013,4]
[349110912,1736975433961,-500.0,0.00043013,4]
[349110913,1736975433971,-500.0,0.00043013,4]
[349110914,1736975433981,-170.91919624,0.00043013,4]
[349110915,1736975433990,-635.6876136,0.00043013,4]
[349110916,1736975434000,-500.0,0.00043013,4]
[349110917,1736975434010,-495.75908294,0.00043013,4]
[349110918,1736975434021,-500.0,0.00043013,4]
[349110919,1736975434030,-500.0,0.00043013,4]
[349110920,1736975434040,-500.0,0.00043013,4]
[349110921,1736975434050,-516.17187516,0.00043013,4]
[349110922,1736975434061,-500.0,0.00043013,4]
[349110923,1736975434071,-500.0,0.00043013,4]
[349110924,1736975434083,-151.0,0.00043013,14]
[349110925,1736975434094,-151.0,0.00043013,14]
[349110926,1736975434104,-151.0,0.00043013,14]
[349110927,1736975434114,-151.0,0.00043013,14]
[349110928,1736975434124,-504.48289189,0.00043013,4]
[349110929,1736975434134,-500.0,0.00043013,4]
[349110930,1736975434145,-500.0,0.00043013,4]
[349110931,1736975434156,-500.0,0.00043013,4]
[349110932,1736975434167,-500.0,0.00043013,4]
[349110933,1736975434177,-500.0,0.00043013,4]
[349110934,1736975434187,-500.0,0.00043013,4]
[349110935,1736975434198,-500.0,0.00043013,4]
[349110936,1736975434208,-500.0,0.00043013,4]
[349110937,1736975434218,-500.0,0.00043013,4]
[349110938,1736975434228,-500.0,0.00043013,4]
[349110939,1736975434237,-500.0,0.00043013,4]
[349110940,1736975434247,-151.0,0.00043013,14]
[349110941,1736975434257,-151.0,0.00043013,14]
[349110942,1736975434267,-500.0,0.00043013,4]
[349110943,1736975434277,-500.86035419,0.00043013,4]
[349110944,1736975434286,-500.0,0.00043013,4]
[349110945,1736975434296,-500.0,0.00043013,4]
[349110946,1736975434307,-252.45510089,0.00043013,4]
[349110947,1736975434317,-500.0,0.00043013,4]
[349110948,1736975434326,-500.0,0.00043013,4]
[349110949,1736975434336,-500.0,0.00043013,4]
[349110950,1736975434346,-500.0,0.00043013,4]
[349110951,1736975434356,-500.0,0.00043013,4]
[349110952,1736975434366,-500.0,0.00043013,4]
[349110953,1736975434376,-500.0,0.00043013,4]
[349110954,1736975434385,-500.0,0.00043013,4]
[349110955,1736975434395,-502.20868108,0.00043013,4]
[349110956,1736975434405,-500.0,0.00043013,4]
[349110957,1736975434415,-500.0,0.00043013,4]
[349110958,1736975434425,-500.0,0.00043013,4]
[349110959,1736975434435,-500.0,0.00043013,4]
[349110960,1736975434445,-500.0,0.00043013,4]
[349110961,1736975434455,-500.0,0.00043013,4]
[349110962,1736975434465,-500.0,0.00043013,4]
[349110963,1736975434474,-500.0,0.00043013,4]
[349110964,1736975434484,-500.0,0.00043013,4]
[349110965,1736975434493,-500.0,0.00043013,4]
[349110966,1736975434503,-500.0,0.00043013,4]
[349110967,1736975434514,-500.0,0.00043013,4]
[349110968,1736975434524,-500.0,0.00043013,4]
[349110969,1736975434534,-500.0,0.00043013,4]
[349110970,1736975434544,-503.5296091,0.00043013,4]
[349110971,1736975434554,-500.0,0.00043013,4]
[349110972,1736975434563,-504.57192912,0.00043013,4]
[349110973,1736975434573,-500.0,0.00043013,4]
[349110974,1736975434583,-500.0,0.00043013,4]
[349110975,1736975434592,-500.0,0.00043013,4]
[349110976,1736975434602,-502.76088552,0.00043013,4]
[349110977,1736975434611,-500.0,0.00043013,4]
[349110978,1736975434620,-500.0,0.00043013,4]
[349110979,1736975434629,-514.03164987,0.00043013,4]
[349110980,1736975434639,-500.0,0.00043013,4]
[349110981,1736975434649,-500.0,0.00043013,4]
[349110982,1736975434659,-500.0,0.00043013,4]
[349110983,1736975434669,-600.52547341,0.00043013,4]
[349110984,1736975434678,-500.0,0.00043013,4]
[349110985,1736975434687,-500.0,0.00043013,4]
[349110986,1736975434696,-500.0,0.00043013,4]
[349110987,1736975434706,-502.00402069,0.00043013,4]
[349110988,1736975434716,-501.6875977,0.00043013,4]
[349110989,1736975434725,-500.0,0.00043013,4]
[349110990,1736975434735,-500.0,0.00043013,4]
[349110991,1736975434745,-500.0,0.00043013,4]
[349110992,1736975434755,-500.0,0.00043013,4]